Workbook

Sheet Sheet1
A1: International Fellows Funding | B1: College/ Administrative Unit | C1: Department/ Administrative Unit | D1: Other (please specify) | E1: TOTAL COST OF PROJECT | F1: Budget Items
F2: Personnel
A3: 1500 | E3: =SUM(A3:D3) -> 1500 | F3: Faculty / Staff Stipend (max. $1500 / mentor)
A4: 4000 | E4: =SUM(A4:D4) -> 4000 | F4: Student Stipend (max. $1,000 / student)
A5: =A3+A4 -> 5500 | B5: =B3+B4 -> 0 | C5: 0 | D5: 0 | E5: 5500 | F5: TOTAL STIPEND
F7: Project Travel
A8: 7000 | E8: =SUM(A8:D8) -> 7000 | F8: International Travel
F9: International airfare to ___ $1,400 x 5
A10: 500 | E10: =SUM(A10:D10) -> 500 | F10: In-Country Travel
F11: Local transport and taxis
A12: 2625 | E12: =SUM(A12:D12) -> 2625 | F12: Lodging
F13: Hostel @ $25/person/night x 21 nights
A14: =5*36.5 -> 182.5 | E14: 182.5 | F14: CISI Insurance (9-15 days = $19; 16-22 days = $27; 23+ days = $36.50 per person)
F15: 4 students, 1 professor, 25 days
A16: 200 | E16: =SUM(A16:D16) -> 200 | F16: Other
F17: Please specify
A18: =A8+A10+A12+A14+A14+A16 -> 10690 | B18: =B8+B10+B12+B16 -> 0 | C18: 0 | D18: 0 | E18: =SUM(A18:D18) -> 10690 | F18: TOTAL TRAVEL
F20: Supplies
C21: 50 | E21: =SUM(A21:D21) -> 50 | F21: Photocopies
C22: 250 | E22: =SUM(A22:D22) -> 250 | F22: Local translation services
E23: =SUM(A23:D23) -> 0 | F23: Please specify
E24: 0 | F24: Please specify
A25: =A21+A22+A23+A24 -> 0 | B25: =B21+B22+B23+B24 -> 0 | C25: =C21+C22+C23+C24 -> 300 | D25: 0 | E25: 300 | F25: TOTAL SUPPLIES
A27: 30 | E27: 30 | F27: APPLICATION FEE
A29: =A5+A18+A25+A27 -> 16220 | B29: =B5+B18+B25 -> 0 | C29: =C5+C18+C25+C27 -> 300 | D29: 0 | E29: =SUM(A29:D29) -> 16520 | F29: TOTAL BUDGET
